Cogmind - Beta 15 @@@ ROGUE MODE // 2025.09.02 @ 16:46:26 Player: shapeshifter Result: Destroyed by Z5-6XZ(R) with Subdweller Shrapnel Launcher Performance ------------- Evolutions (0) 0 Regions Visited (3) 600 Robots Destroyed (15) 75 Value Destroyed (376) 376 Prototype IDs (0) 0 Alien Tech Used (0) 0 Bonus (0) 0 TOTAL SCORE: 1051 Bonus ------- None Cogmind --------- Core Integrity 0/250 Matter 283/300 Energy 200/200 System Corruption 0% Temperature Cool (0) Movement Rolling (110) Location -10/Subcaves Parts ------- > --- POWER (1) -------- Subdweller Power Source > --- PROPULSION (2) --- Subdweller Monowheel > --- UTILITY (2) ------ Medium Storage Unit > --- WEAPON (2) ------- Light Assault Rifle > --- INVENTORY (10) --- Subdweller Power Source Subdweller Power Source Subdweller Monowheel Peak State ------------ > --- POWER ------------ Subdweller Power Source > --- PROPULSION ------- Light Treads Subdweller Monowheel > --- UTILITY ---------- Medium Storage Unit Seismic Detector > --- WEAPON ----------- Light Assault Rifle Light Assault Rifle > --- INVENTORY -------- Subdweller Power Source Subdweller Power Source Wheel Subdweller Monowheel Subdweller Monowheel Grenade Launcher [Rating: 10] Favorites ----------- Power Ion Engine Engine Ion Engine Propulsion Light Treads Treads Light Treads Wheel Subdweller Monowheel Utility Seismic Detector Device Seismic Detector Storage Small Storage Unit Weapon Assault Rifle Ballistic Gun Assault Rifle Launcher Grenade Launcher Build | -11 -10 -10 -10 ------- Run | Yrd Mat Min Sub Slots Evolved . | . . . . Power . | . . . . Propulsion . | . . . . Utility . | . . . . Weapon . | . . . . Parts Attached 18 | 7 . . 11 Power 3 | 1 . . 2 Engine 3 | 1 . . 2 Core . | . . . . Reactor . | . . . . Propulsion 7 | 2 . . 5 Treads 2 | 2 . . . Leg . | . . . . Wheel 5 | . . . 5 Hover . | . . . . Flight . | . . . . Utility 3 | 2 . . 1 Device 1 | 1 . . . Storage 2 | 1 . . 1 Processor . | . . . . Hackware . | . . . . Protection . | . . . . Artifact . | . . . . Weapon 5 | 2 . . 3 Energy Gun . | . . . . Energy Cannon . | . . . . Ballistic Gun 4 | 2 . . 2 Ballistic Cannon . | . . . . Launcher 1 | . . . 1 Special Weapon . | . . . . Impact Weapon . | . . . . Slashing Weapon . | . . . . Piercing Weapon . | . . . . Special Melee Weapon . | . . . . Unidentified Prototypes . | . . . . Parts Lost 9 | . . . 9 Power . | . . . . Propulsion 4 | . . . 4 Utility 1 | . . . 1 Weapon 4 | . . . 4 Highest Loss Streak 3 | . . . 3 To Critical Strikes . | . . . . Average Backups 5 | 3 5 6 6 Power 1 | 1 1 1 1 Propulsion 2 | 1 2 2 2 Utility . | . . 1 . Weapon 1 | . 1 2 2 Tool/Special . | . . . . Unused Backups 6 | . . 1 5 Power 2 | . . . 2 Propulsion 1 | . . . 1 Utility 2 | . . . 2 Weapon 1 | . . 1 . Tool/Special . | . . . . Average Slot Usage (%) 95 | . 100 100 93 Engine 14 | . 14 14 14 Treads 19 | . 28 28 14 Wheel 8 | . . . 12 Device 10 | . 14 14 8 Storage 14 | . 14 14 14 Ballistic Gun 27 | . 28 28 27 Peak Build Rating 10 | 7 7 7 10 Average Rating 7 | 5 7 7 8 On Entrance 5 | . 7 7 7 Naked Turns . | . . . . Heaviest Build 20 | 15 15 15 20 Greatest Support 40 | 40 40 40 40 Greatest Overweight (x) . | . . . . Average Overweight (x) . | . . . . Largest Inventory Capacity 10 | 8 8 8 10 Average Capacity 8 | 7 8 8 9 Most Carried 9 | 6 6 8 9 Average Carried 5 | 3 5 6 6 Final Capacity 10 | 8 8 8 10 Final Carried 7 | 4 6 7 3 Class Distribution -------------------- 70% | Mutant 29% | Scavenger-Mutant Dominant Class ---------------- Mutant | -10/Materials Mutant | -10/Mines Mutant | -10/Subcaves Resources | -11 -10 -10 -10 ----------- Run | Yrd Mat Min Sub Matter Collected 736 | 195 90 45 406 Remotely . | . . . . Salvage Created 615 | 25 90 45 455 Parts 42 | 2 5 7 28 Haulers Intercepted . | . . . . Recyclers Shooed . | . . . . Parts Field Recycled . | . . . . Retrieved Matter . | . . . . Parts Self-Destructed 9 | . . . 9 Prevented . | . . . . Kills | -11 -10 -10 -10 ------- Run | Yrd Mat Min Sub Combat Hostiles Destroyed 14 | . 2 3 9 Guns 14 | . 2 3 9 Classes Destroyed 4 | 1 1 1 1 Tunneler 1 | 1 . . . Swarmer 6 | . . 3 3 Grunt 4 | . 2 . 2 Subdweller 4 | . . . 4 Best Kill Streak 3 | 1 2 3 3 Combat Bots Only 3 | . 2 3 3 Max Kills in Single Turn 1 | 1 1 1 1 Gunslinging . | . . . . Exploded . | . . . . Melee . | . . . . Uniques/NPCs Destroyed . | . . . . Combat | -11 -10 -10 -10 -------- Run | Yrd Mat Min Sub Hostile Shots Fired 83 | . 11 13 59 Missed 24 | . 3 2 19 Hits 59 | . 8 11 40 Projectile 59 | . 8 11 40 AOE 8 | . . . 8 Critical Strikes 1 | . . 1 . Damage Taken 1141 | . 88 87 966 Core 270 | . 22 8 240 Absorbed by Shields . | . . . . Core Remaining (%) 100 | 100 . . . Volleys Fired 61 | 2 8 5 46 Largest 2 | 2 2 2 2 Hottest 50 | 40 40 40 50 Shots Fired 120 | 4 16 10 90 Gun 119 | 4 16 10 89 Cannon . | . . . . Launcher 1 | . . . 1 Special . | . . . . Kinetic 119 | 4 16 10 89 Thermal . | . . . . Explosive 1 | . . . 1 Electromagnetic . | . . . . Robot Hit Streak 15 | 2 14 3 15 Robot Miss Streak 6 | 2 2 3 6 Penetration Max . | . . . . Secondary Targets . | . . . . Shots Hit Robots 80 | 2 14 5 59 Core Hits 32 | 1 4 3 24 Critical Kills . | . . . . Critical Parts Destroyed . | . . . . Critical Strikes . | . . . . Melee Attacks . | . . . . Impact . | . . . . Slashing . | . . . . Piercing . | . . . . Sneak Attacks . | . . . . Combat Hostiles . | . . . . Follow-up Attacks . | . . . . Damage Inflicted 1034 | 27 175 63 769 Guns 936 | 27 175 63 671 Cannons . | . . . . Explosions 98 | . . . 98 Melee . | . . . . Ramming . | . . . . Kinetic 936 | 27 175 63 671 Thermal . | . . . . Explosive 98 | . . . 98 Electromagnetic . | . . . . Impact . | . . . . Slashing . | . . . . Piercing . | . . . . Highest Corruption . | . . . . Average Corruption . | . . . . Corruption Purged . | . . . . Corruption Blocked . | . . . . Overload Shots . | . . . . Overflow Damage . | . . . . Projectiles . | . . . . Explosions . | . . . . Melee . | . . . . Knockbacks . | . . . . Impact . | . . . . Kinetic . | . . . . Secondary . | . . . . Self-Inflicted Damage . | . . . . Shots . | . . . . Rammed . | . . . . Targets Rammed . | . . . . Kicked . | . . . . Crushed . | . . . . Highest Temperature . | . . . . Average Temperature . | . . . . Received Heat Transfer 207 | . 48 . 159 Siege Activations . | . . . . Martial Activations . | . . . . Shielding Activations . | . . . . Robots Disrupted . | . . . . Combat Hostiles . | . . . . Robots Corrupted . | . . . . Combat Hostiles . | . . . . Parts Fried . | . . . . Impact Corruptions . | . . . . Robots Melted . | . . . . Combat Hostiles . | . . . . Parts Melted . | . . . . Heat Transferred . | . . . . Parts Sabotaged . | . . . . Parts Stolen . | . . . . Parts Stripped . | . . . . Power Chain Reactions . | . . . . Alert | -11 -10 -10 -10 ------- Run | Yrd Mat Min Sub Maximum Alert Level . | . . . . Low Security (%) 100 | 100 100 100 . Level 1 . | . . . . Level 2 . | . . . . Level 3 . | . . . . Level 4 . | . . . . Level 5 . | . . . . High Security . | . . . . Max Security . | . . . . Peak Influence 60 | 5 40 60 . Initial . | . . . . Average 7 | . 5 16 . Influence Increases 235 | 5 40 70 120 Destroy 0b10 Robot/C 200 | . 40 60 100 Destroy 0b10 Robot/NC 5 | 5 . . . Destroy Leader 30 | . . 10 20 Influence Decreases 235 | 5 40 30 160 Entered New Map 21 | . . . 21 Time Decay 184 | 5 40 30 109 Lost Part 30 | . . . 30 Squads Dispatched . | . . . . Investigation . | . . . . Extermination . | . . . . Reinforcement . | . . . . Assault . | . . . . Garrison . | . . . . Intercept . | . . . . Searches Triggered . | . . . . Construction Impeded . | . . . . Haulers Reinforced . | . . . . Active Scanning Responses . | . . . . Cargo Convoy Interrupts . | . . . . Stealth | -11 -10 -10 -10 --------- Run | Yrd Mat Min Sub Distress Signals . | . . . . Communications Jammed . | . . . . Distress Signals . | . . . . Times Spotted 17 | . 3 3 11 Peak Tracking Total 3 | . 2 3 2 Tactical Retreats . | . . . . Traps | -11 -10 -10 -10 ------- Run | Yrd Mat Min Sub Traps Triggered . | . . . . Indirectly . | . . . . Trap Hack Attempts . | . . . . Triggered . | . . . . Disarmed . | . . . . Reprogrammed . | . . . . Reused . | . . . . Traps Extracted . | . . . . Installed . | . . . . Triggered . | . . . . Machines | -11 -10 -10 -10 ---------- Run | Yrd Mat Min Sub Machines Disabled . | . . . . Max in Single Turn . | . . . . Machines Repaired . | . . . . Machines Dismantled . | . . . . Machines Sabotaged . | . . . . Overloaded Fab Kills . | . . . . Hacking | -11 -10 -10 -10 --------- Run | Yrd Mat Min Sub Machines Accessed 2 | . 2 . . Terminals 2 | . 2 . . Fabricators . | . . . . Repair Stations . | . . . . Recycling Units . | . . . . Scanalyzers . | . . . . Garrison Access . | . . . . Total Hacks 6 | . 6 . . Successful 3 | . 3 . . Failed 3 | . 3 . . Catastrophic . | . . . . Database Lockouts . | . . . . Manual 6 | . 6 . . Terminals 6 | . 6 . . Fabricators . | . . . . Repair Stations . | . . . . Recycling Units . | . . . . Scanalyzers . | . . . . Garrison Access . | . . . . Terminal Hacks . | . . . . Fabricator Hacks . | . . . . Repair Station Hacks . | . . . . Recycling Unit Hacks . | . . . . Scanalyzer . | . . . . Garrison Access Hacks . | . . . . Unauthorized Hacks 3 | . 3 . . Terminals 3 | . 3 . . Botnet 2 | . 2 . . Skim 1 | . 1 . . Fabricators . | . . . . Repair Stations . | . . . . Recycling Units . | . . . . Scanalyzers . | . . . . Garrison Access . | . . . . Data Cores Recovered . | . . . . Used . | . . . . Hacking Detections 2 | . 2 . . Full Trace Events . | . . . . Feedback Events . | . . . . Feedback Blocked . | . . . . Robot Schematics Acquired . | . . . . Robots Built . | . . . . Authchips . | . . . . Time . | . . . . Total Robot Build Rating . | . . . . Part Schematics Acquired . | . . . . Parts Built . | . . . . Authchips . | . . . . Time . | . . . . Total Part Build Rating . | . . . . Parts Repaired . | . . . . Time . | . . . . Parts Recycled . | . . . . Recycled Matter . | . . . . Retrieved Matter . | . . . . Retrieved Components . | . . . . Parts Scanalyzed . | . . . . Part Schematics Acquired . | . . . . Parts Damaged . | . . . . Bothacking | -11 -10 -10 -10 ------------ Run | Yrd Mat Min Sub Used RIF Installer . | . . . . Robots Hacked . | . . . . Non-combat . | . . . . Combat . | . . . . Robot Hacks Applied . | . . . . Relay Couplers Released . | . . . . Fabnet Peak Effective % . | . . . . Robots Rewired . | . . . . Allies Hacked . | . . . . Hacks Repelled . | . . . . Allies | -11 -10 -10 -10 -------- Run | Yrd Mat Min Sub Total Allies . | . . . . Largest Group . | . . . . Highest-Rated Group . | . . . . Highest-Rated Ally . | . . . . Total Orders . | . . . . Ally Attacks . | . . . . Total Damage . | . . . . Kills . | . . . . Allies Corrupted . | . . . . Allies Melted . | . . . . Intel | -11 -10 -10 -10 ------- Run | Yrd Mat Min Sub Active Infowar (turns) 967 | 55 262 173 477 Seismic 967 | 55 262 173 477 Robot Analysis Total . | . . . . Derelict Logs Recovered 1 | . . 1 . Drone Launches . | . . . . Drone Recoveries . | . . . . Exploration | -11 -10 -10 -10 ------------- Run | Yrd Mat Min Sub Turns Passed 1361 | 111 262 173 815 Spaces Moved 836 | 71 148 98 519 Core 27 | 27 . . . Treads 497 | 44 148 98 207 Legs . | . . . . Wheels 312 | . . . 312 Hover . | . . . . Flight . | . . . . Fastest Speed 50 | 50 160 160 95 Average Speed 136 | 118 160 160 127 Slowest Speed 160 | 160 160 160 160 Overloaded Moves . | . . . . Propulsion Burnouts . | . . . . Robots Hopped . | . . . . Potential Cave-ins . | . . . . Cave-ins Triggered . | . . . . Exploration Rate (%) 23 | 4 28 27 33 Regions Visited 3 Branch Regions 2 Pre-discovered Areas . | . . . . Known Exits Taken . | . . . . Unknown Exits Taken 3 | 1 1 1 . Scrap Searched . | . . . . Spaces Dug . | . . . . Terrain Destroyed 4 | . . . 4 Melee . | . . . . Projectile . | . . . . AOE 4 | . . . 4 Terrain Rammed . | . . . . Walls Destroyed . | . . . . Machines Disabled . | . . . . Actions | -11 -10 -10 -10 --------- Run | Yrd Mat Min Sub Total 951 | 94 157 105 595 Wait 8 | 5 . . 3 Move 833 | 70 147 97 519 Hop . | . . . . Pick Up 22 | 10 2 2 8 Fast Attach 1 | 1 . . . Attach 12 | 6 . . 6 Detach . | . . . . Swap 5 | . . . 5 Drop 9 | . . 1 8 Fire 61 | 2 8 5 46 Melee . | . . . . Ram . | . . . . Kick . | . . . . Crush . | . . . . Escape Stasis . | . . . . Rewire . | . . . . Trap . | . . . . Miscellaneous . | . . . . Route ------- -11/Scrapyard -10/Materials -10/Mines -10/Subcaves (discovered 2 exits: [*Mat x2]) History --------- Turn | Location | Event 9 | -11/Scrapyard | Discovered new exit (range 15) 112 | -11/Scrapyard | Entered Materials 271 | -10/Materials | Discovered new exit (range 10) 303 | -10/Materials | Build established: Mutant 374 | -10/Materials | Entered Mines 472 | -10/Mines | Learned location of 1 exit from Materials 538 | -10/Mines | Discovered new exit (range 8) 547 | -10/Mines | Entered Subcaves 548 | -10/Subcaves | Approached by a straggling Scientist 994 | -10/Subcaves | Lost 3 parts (1n2w) 1080 | -10/Subcaves | Core integrity fell below 50% 1182 | -10/Subcaves | Discovered new exit (range 9) 1272 | -10/Subcaves | Discovered new exit (range 6) 1357 | -10/Subcaves | Ambushed by Subdwellers from Twisted Machinery 1361 | -10/Subcaves | Core integrity fell below 20% 1362 | -10/Subcaves | Destroyed by Z5-6XZ(R) with Subdweller Shrapnel Launcher Last Messages --------------- 01113_ Aluminum Leg fries itself beyond repair. 01118_ Acquired 48 matter. PQ-7YX(c): "I think it's somewhere northwest of here" 01182_ EXIT=FOUND 01192_ Sub. Monowheel shoots sparks and powers down. PQ-7YX(c): "I think it's somewhere northwest of here" 01233_ Acquired 6 matter. 01236_ Acquired 4 matter. PQ-7YX(c): "I think it's somewhere northwest of here" 01272_ EXIT=FOUND PQ-7YX(c): "I think it's somewhere west of here" 01357_ Z5-6XZ(R) emerges from the Twisted Machinery. 01357_ Sub. Monowheel destroyed. 01357_ Lgt. Assault Rifle destroyed. 01358_ Grenade Launcher destroyed. Map ----- +----------------------------------------------------+ | ???????????????????????????????????????????????? | | ???????????????????????????????????????????????? | | ???????????????????????????????????????????????? | | ???????????????????????????????????????????????? | | ???????????????????????????????????????????????? | | ???????????????????????????????????????????????? | | ???????????????????????????????????????????????? | | ???????????????????????????????????????????????? | | ???????????????????????????????????????????????? | | ???????????????????????????????????????????????? | | ???????????????????????????????????????????????? | | ???????????????????????????????????????????????? | | ???????????????????????????????????????????????? | | ???????????????????????????????????????????????? | | ?????????????????##????????????????????????????? | | ????????????????? ???????????????????????????? | | ?????????????????? #??????????????????????????? | | ??????????????????? ???????####?#????????????? | | ???????????????????# ?????## # #????????????? | | ??????????????????## ???# "#?????????????? | | ????????????????### ### ##????????????? | | ????????????????# R " #????????????? | | ????????????????# R"##????????????? | | ?????????????????? #????????????? | | ???????????????" " # #?????????????? | | ?????????????????#""# @ ; #?????????????? | | ?????????????????#"""# # ##?????????????? | | ??????????????????#"" # ##?????????????? | | ?????????????????##"" #?????????????? | | ??????????????" ## " ; #??????????????? | | ?????????????"" " "" # ##??????????????? | | ????????????#" "" " #??????????????? | | ????????????"" " " c # # ##??????????????? | | ?????????????"" #### #### #??????????????? | | ?????????????" ????## ## ##??????????????? | | ????????????????????# ### ^ #??????????????? | | ?????????????????##### #?# ##?????????????? | | ????????????????##" ## #### #?????????????? | | ???????????????## " ## ##?????????????? | | ???????????????# ##?# #??????????????? | | ?????????????### ##### #???????????????? | | ?????????##### ## #???????????????? | | ????????## ##??????????????? | | ????????# ## #??????????????? | | ????????# ## ## #??????????????? | | ????????## ###### #??????????????? | | ?????????# ###?##??##??????????????? | | ?????????#### ## #### ##?????????????????? | | ????????????#?## ##????????????????? | | ?????????????## ##???????????????? | +----------------------------------------------------+ Best States ------------- Heat Dissipation 25 Energy Generation 15 Energy Capacity 250 Matter Stores 300 Matter Capacity 300 Sight Range 16 Terrain Scan Density 10 Evasion (%) 50 Recoil Reduction 2 Item Schematics ----------------- None Robot Schematics ------------------ None Fabricated ------------ Nothing Repaired ---------- Nothing Alien Tech Used ----------------- None Achievements -------------- None Challenges ------------ None Game ------ Seed SuperchargedProjectileMatrix Manual? 0 Play Time 00:07:20 Cumulative 252.4 hours Start 2025.09.02 @ 16:38:12 End 2025.09.02 @ 16:46:26 Sessions 1 Manual Loads 0 Difficulty Rogue Special Mode None Game No. 370 Rogue 370 Adventurer 0 Explorer 0 Win Type - Total 5 Types 4/0/1/0/0/0/0/0/0/0 Lore% 83 Gallery% 79 Achievement% 61 Wizard Run 0 Options --------- Layout 1 ASCII 0 Keyboard 0 Movement Mouse Keybinds 0 Fullscreen 1 Font 24/Smallcaps Map View 50x40 Zoom Use 0% Tactical HUD 1 Map Filters NONE Filters NONE Steam 1 RUN: fcbfd7c4-352c-48c7-a8a2-e681d0755d8b